Workbook

Sheet WHMcNumber (hidden)
A1: DO NOT ALTER OR DELETE THIS SHEET. | D1: Chart Names | G1: Excel Version | H1: 16 | J1: PC

Sheet Instructions
A1: There are three worksheets containing the data.
A3: Stable Process Data: this worksheet contains the 5000 data points based on a normal distribution with average = 100 and standard deviation = 10
A4: Mixed Process Data: this worksheet contains 5000 data points: 4500 from the original data set and 500 with average = 85 and standard deviation = 10
A5: OOC Added Data: this worksheet contains 4750 data points from the original data set and 200 out of control points (60, 65, 135, 140)
A7: Each data sheet has the process data in column B
A8: Column A contains the function "rand()", this is used to sort the data in column B.
A10: There is a Start button that starts the simulation.
A12: These results are placed in the worksheet:
A13: n
A14: Rbar
A15: sBar
A16: d2
A17: c4
A18: Sigma from Rbar
A19: Sigma from sBar
A20: Population s
A22: Each worksheet has a chart that updates the results from the simulation
A24: There is a worksheet called Constants that contains the vaules of d2 and c4
A25: There is also a worksheet with the data used for the control charts shown in the publication.
A29: Please contact me if you have any questions:
A31: bill@spcforexcel.com

Sheet Stable Process Data
A1: =RAND() -> 0.4470818484 | B1: 105.6 | D1: Avg | E1: =AVERAGE(B:B) -> 100.025698 | J1: n | K1: Rbar | L1: sBar | M1: d2 | N1: c4 | O1: Sigma from Rbar | P1: Sigma from sBar | Q1: Population s
A2: 0.3761063124 | B2: 106.32 | D2: Stdev | E2: =STDEV(B:B) -> 10.04007296 | J2: 2 | K2: 11.3218095 | L2: 8.005728273 | M2: 1.128 | N2: 0.7979 | O2: =K2/M2 -> 10.03706516 | P2: =L2/N2 -> 10.03349827 | Q2: =E2 -> 10.04007296 | AC2: d2 | AD2: c4 | AE2: d3 | AF2: c5 | AG2: e1
A3: 0.5933694307 | B3: 108.59 | J3: 3 | K3: 17.0873775 | L3: 8.945641104 | M3: 1.693 | N3: 0.8862 | O3: =K3/M3 -> 10.09295777 | P3: 10.09438175 | Q3: =Q2 -> 10.04007296 | AB3: 1 | AE3: 0.82 | AF3: *
A4: 0.8658556102 | B4: 104.57 | J4: 4 | K4: 20.6491195 | L4: 9.240542637 | M4: 2.059 | N4: 0.9213 | O4: 10.02871272 | P4: 10.02989541 | Q4: =Q3 -> 10.04007296 | AB4: 2 | AC4: 1.128 | AD4: 0.7978845608 | AE4: 0.8525 | AF4: 0.60281
A5: 0.11610644 | B5: 91.84 | J5: 5 | K5: 23.238027 | L5: 9.395194215 | M5: 2.326 | N5: 0.94 | O5: 9.99055331 | P5: 9.994887462 | Q5: 10.04007296 | AB5: 3 | AC5: 1.693 | AD5: 0.8862269255 | AE5: 0.8884 | AF5: 0.463251 | AG5: 1.16
A6: 0.7241599998 | B6: 100.03 | J6: 6 | K6: 25.4709265 | L6: 9.564524381 | M6: 2.534 | N6: 0.9515 | O6: 10.05166792 | P6: 10.05204874 | Q6: 10.04007296 | AB6: 4 | AC6: 2.059 | AD6: 0.9213177319 | AE6: 0.8794 | AF6: 0.38881 | AG6: 1.093
A7: 0.4780227157 | B7: 105.34 | J7: 7 | K7: 27.163365 | L7: 9.633436764 | M7: 2.704 | N7: 0.9594 | O7: 10.04562315 | P7: 10.04110565 | Q7: 10.04007296 | AB7: 5 | AC7: 2.326 | AD7: 0.939985603 | AE7: 0.8641 | AF7: 0.341213 | AG7: 1.198
A8: 0.9680032814 | B8: 100.93 | J8: 8 | K8: 28.587958 | L8: 9.692183409 | M8: 2.847 | N8: 0.965 | O8: 10.04143238 | P8: 10.04371338 | Q8: 10.04007296 | AB8: 6 | AC8: 2.534 | AD8: 0.9515328619 | AE8: 0.848 | AF8: 0.307547 | AG8: 1.134
A9: 0.08774572791 | B9: 95.57 | J9: 9 | K9: 29.80273 | L9: 9.725416226 | M9: 2.97 | N9: 0.9693 | O9: 10.03458923 | P9: 10.03344292 | Q9: 10.04007296 | AB9: 7 | AC9: 2.704 | AD9: 0.9593687887 | AE9: 0.8332 | AF9: 0.282154 | AG9: 1.214
A10: 0.07411030269 | B10: 88.55 | J10: 10 | K10: 30.920509 | L10: 9.778164149 | M10: 3.078 | N10: 0.9727 | O10: 10.04564945 | P10: 10.05260013 | Q10: 10.04007296 | AB10: 8 | AC10: 2.847 | AD10: 0.9650304561 | AE10: 0.8198 | AF10: 0.262139 | AG10: 1.162
A11: 0.9139720995 | B11: 109.44 | J11: 11 | K11: 31.9051025 | L11: 9.813993241 | M11: 3.173 | N11: 0.9754 | O11: 10.05518516 | P11: 10.0615063 | Q11: 10.04007296 | AB11: 9 | AC11: 2.97 | AD11: 0.9693106997 | AE11: 0.8078 | AF11: 0.245838 | AG11: 1.223
A12: 0.6678701894 | B12: 92.26 | J12: 12 | K12: 32.72133 | L12: 9.819409031 | M12: 3.258 | N12: 0.9776 | O12: 10.04337937 | P12: 10.04440367 | Q12: 10.04007296 | AB12: 10 | AC12: 3.078 | AD12: 0.9726592741 | AE12: 0.7971 | AF12: 0.232238 | AG12: 1.174
A13: 0.6611843241 | B13: 101.55 | J13: 13 | K13: 33.521687 | L13: 9.857251654 | M13: 3.336 | N13: 0.9794 | O13: 10.04846733 | P13: 10.06458204 | Q13: 10.04007296 | AB13: 11 | AC13: 3.173 | AD13: 0.9753500771 | AE13: 0.7873 | AF13: 0.220663 | AG13: 1.228
A14: 0.3975331083 | B14: 90.72 | J14: 14 | K14: 34.277262 | L14: 9.873672471 | M14: 3.407 | N14: 0.981 | O14: 10.06083416 | P14: 10.06490568 | Q14: 10.04007296 | AB14: 12 | AC14: 3.258 | AD14: 0.9775593519 | AE14: 0.7785 | AF14: 0.210662 | AG14: 1.188
A15: 0.2446114947 | B15: 89.53 | J15: 15 | K15: 34.6987705 | L15: 9.836463097 | M15: 3.472 | N15: 0.9823 | O15: 9.993885513 | P15: 10.01370569 | Q15: 10.04007296 | AB15: 13 | AC15: 3.336 | AD15: 0.9794056043 | AE15: 0.7704 | AF15: 0.201901 | AG15: 1.233
A16: 0.8522087338 | B16: 78.99 | J16: 16 | K16: 35.3935905 | L16: 9.861817418 | M16: 3.532 | N16: 0.9835 | O16: 10.02083536 | P16: 10.02726733 | Q16: 10.04007296 | AB16: 14 | AC16: 3.407 | AD16: 0.9809714368 | AE16: 0.763 | AF16: 0.194154 | AG16: 1.2
A17: 0.932095496 | B17: 104.83 | J17: 17 | K17: 36.092424 | L17: 9.916424344 | M17: 3.588 | N17: 0.9845 | O17: 10.05920401 | P17: 10.07254885 | Q17: 10.04007296 | AB17: 15 | AC17: 3.472 | AD17: 0.9823161772 | AE17: 0.7562 | AF17: 0.187231 | AG17: 1.237
A18: 0.6073902343 | B18: 103.85 | J18: 18 | K18: 36.5219735 | L18: 9.897041935 | M18: 3.64 | N18: 0.9854 | O18: 10.0335092 | P18: 10.04367966 | Q18: 10.04007296 | AB18: 16 | AC18: 3.532 | AD18: 0.9834835316 | AE18: 0.7499 | AF18: 0.180995
A19: 0.284751927 | B19: 95.42 | J19: 19 | K19: 37.0428945 | L19: 9.910550293 | M19: 3.689 | N19: 0.9862 | O19: 10.04144606 | P19: 10.04922966 | Q19: 10.04007296 | AB19: 17 | AC19: 3.588 | AD19: 0.9845064055 | AE19: 0.7441 | AF19: 0.175351
A20: 0.948372674 | B20: 112.25 | J20: 20 | K20: 37.4975065 | L20: 9.915087671 | M20: 3.735 | N20: 0.9869 | O20: 10.03949304 | P20: 10.04669943 | Q20: 10.04007296 | AB20: 18 | AC20: 3.64 | AD20: 0.9854100438 | AE20: 0.7386 | AF20: 0.170197
A21: 0.3929467714 | B21: 94.37 | AB21: 19 | AC21: 3.689 | AD21: 0.9862141369 | AE21: 0.7335 | AF21: 0.165475
A22: 0.4833534783 | B22: 106.6 | AB22: 20 | AC22: 3.735 | AD22: 0.9869342675 | AE22: 0.7287 | AF22: 0.161125
A23: 0.0528725485 | B23: 92.66 | AD23: 0.9875829288
A24: 0.06360013967 | B24: 104.79 | AD24: 0.9881702533
A25: 0.9130298391 | B25: 104.58 | AD25: 0.9887045452
A26: 0.4916724321 | B26: 120.47 | AD26: 0.989192675
A27: 0.5367420973 | B27: 98.62 | AD27: 0.9896403756
A28: 0.2367206525 | B28: 90.97
A29: 0.56349244 | B29: 79.25
A30: 0.5646945585 | B30: 104.01
A31: 0.5976498476 | B31: 86.78
A32: 0.1735124444 | B32: 84.2
A33: 0.2523915198 | B33: 93.63
A34: 0.3665903155 | B34: 99.76
A35: 0.4856635723 | B35: 95.35
A36: 0.3742469516 | B36: 102.95
A37: 0.897835033 | B37: 109.02
A38: 0.09123797687 | B38: 113.58
A39: 0.4352141225 | B39: 117.59
A40: 0.9086168224 | B40: 104.92
A41: 0.8672037484 | B41: 93.11
A42: 0.8217506667 | B42: 93.67
A43: 0.1090771027 | B43: 94.63
A44: 0.9913886679 | B44: 87.06
A45: 0.1060060829 | B45: 120.98
A46: 0.4373575024 | B46: 87.94
A47: 0.0116905538 | B47: 89.75
A48: 0.6448618143 | B48: 102.7
A49: 0.2013776198 | B49: 101.5
A50: 0.03736002502 | B50: 104.23
A51: 0.5351325954 | B51: 105.29
A52: 0.2462227174 | B52: 120.6
A53: 0.2356099523 | B53: 97.23
A54: 0.5056442249 | B54: 104.38
A55: 0.6267595638 | B55: 79.07
A56: 0.04053724733 | B56: 97.08
A57: 0.3336097579 | B57: 93.01
A58: 0.5794007753 | B58: 94.39
A59: 0.2933588115 | B59: 126
A60: 0.7380994372 | B60: 104.87
A61: 0.1583061126 | B61: 106
A62: 0.9559501531 | B62: 98.93
A63: 0.4640927354 | B63: 109.27
A64: 0.6649346919 | B64: 103.84
A65: =RAND() -> 0.9401589269 | B65: 103.2
A66: 0.03020988841 | B66: 115.61
A67: 0.02172290805 | B67: 97.91
A68: 0.3167080262 | B68: 97.21
A69: 0.8376534018 | B69: 84.31
A70: 0.3237340503 | B70: 94.56
A71: 0.4749320301 | B71: 100.53
A72: 0.8185195244 | B72: 113.8
A73: 0.2324031443 | B73: 102.37
A74: 0.848657619 | B74: 96.54
A75: 0.7400034271 | B75: 108.53
A76: 0.5182536095 | B76: 99.99
A77: 0.3721965327 | B77: 92.54
A78: 0.2365310095 | B78: 98.66
A79: 0.7916357183 | B79: 91.81
A80: 0.7816239982 | B80: 93.49
A81: 0.6475490438 | B81: 111.12
A82: 0.6411835101 | B82: 101.34
A83: 0.5434351275 | B83: 99.09
A84: 0.6879073269 | B84: 126
A85: 0.09094666271 | B85: 105.13
A86: 0.4996844202 | B86: 106.4
A87: 0.5310514089 | B87: 109.96
A88: 0.3732656677 | B88: 93.1
A89: 0.5621227776 | B89: 105.8
A90: 0.4244305428 | B90: 103.91
A91: 0.822274577 | B91: 89.17
A92: 0.2257558162 | B92: 95.16
A93: 0.1690080726 | B93: 110.12
A94: 0.98886398 | B94: 112.17
A95: 0.8301853014 | B95: 84.94
A96: 0.7182986544 | B96: 89.1
A97: 0.2622799588 | B97: 89.04
A98: 0.9854037896 | B98: 78.8
A99: 0.2033964626 | B99: 101.77
A100: 0.4094864022 | B100: 91.51
A101: 0.9113507486 | B101: 84.71
A102: 0.9429392159 | B102: 86.91
A103: 0.1402974458 | B103: 104.49
A104: 0.6681593662 | B104: 99.03
A105: 0.01312980529 | B105: 86.66
A106: 0.5698457757 | B106: 95.25
A107: 0.6285602478 | B107: 110.94
A108: 0.4255750384 | B108: 124.29
A109: 0.996130628 | B109: 104.9
A110: 0.2564823612 | B110: 99.82
A111: 0.7117270057 | B111: 99.56
A112: 0.01171001357 | B112: 89.64
A113: 0.4804578227 | B113: 90.82
A114: 0.9512274088 | B114: 110.03
A115: 0.8059326827 | B115: 87.47
A116: 0.4918437149 | B116: 101.51
A117: 0.5782210517 | B117: 97.57
A118: 0.5033076451 | B118: 111.03
A119: 0.4883879813 | B119: 111.08
A120: 0.323659515 | B120: 91.6
A121: 0.2253689563 | B121: 81.44
A122: 0.5050026768 | B122: 100.33
A123: 0.302271893 | B123: 94.44
A124: 0.0622686783 | B124: 100.13
A125: 0.1146442023 | B125: 99.54
A126: 0.519393609 | B126: 88.8
A127: 0.6821294155 | B127: 77.63
A128: 0.4127046347 | B128: 107.28
A129: =RAND() -> 0.860553384 | B129: 107.37
A130: 0.2664918136 | B130: 108.14
A131: 0.4940520966 | B131: 97.56
A132: 0.7626909206 | B132: 107.11
A133: 0.6098480957 | B133: 92.23
A134: 0.7953466138 | B134: 86.34
A135: 0.4530831656 | B135: 103.74
A136: 0.1697924446 | B136: 98.8
A137: 0.6609104953 | B137: 105.84
A138: 0.1332899876 | B138: 104.72
A139: 0.1006129445 | B139: 86.19
A140: 0.2296807163 | B140: 114.45
A141: 0.0222548953 | B141: 101.06
A142: 0.8684402215 | B142: 105.65
A143: 0.01160979358 | B143: 90.95
A144: 0.1056853818 | B144: 84.28
A145: 0.2839579065 | B145: 102.96
A146: 0.8547438665 | B146: 105.33
A147: 0.4402181024 | B147: 94.52
A148: 0.3464126751 | B148: 94.36
A149: 0.2719452653 | B149: 98.83
A150: 0.3305441235 | B150: 103.94
A151: 0.5713819451 | B151: 111.03
A152: 0.1070635922 | B152: 95.24
A153: 0.9381323769 | B153: 92.32
A154: 0.7604068751 | B154: 92.81
A155: 0.1908460127 | B155: 102.7
A156: 0.004007833739 | B156: 95.58
A157: 0.2120957732 | B157: 96.51
A158: 0.5361956152 | B158: 99.02
A159: 0.5311703584 | B159: 114.35
A160: 0.09458298141 | B160: 102.06
A161: 0.6377494401 | B161: 106.48
A162: 0.1161180621 | B162: 88.98
A163: 0.6552952703 | B163: 121.06
A164: 0.6348024923 | B164: 98.11
A165: 0.04649895118 | B165: 107.91
A166: 0.3311711551 | B166: 91.76
A167: 0.6820629964 | B167: 107.86
A168: 0.01764667988 | B168: 112.31
A169: 0.6297375819 | B169: 105.13
A170: 0.8142653284 | B170: 106.07
A171: 0.4238746081 | B171: 106.19
A172: 0.3124512612 | B172: 92.5
A173: 0.6953145618 | B173: 89.36
A174: 0.1342386775 | B174: 94.86
A175: 0.3526379888 | B175: 88.3
A176: 0.8361782123 | B176: 128.68
A177: 0.2575380137 | B177: 111.13
A178: 0.3739913103 | B178: 86.53
A179: 0.4350763736 | B179: 102.61
A180: 0.9733456817 | B180: 92.84
A181: 0.06105682673 | B181: 100.53
A182: 0.6511880401 | B182: 99.63
A183: 0.6790876565 | B183: 102.89
A184: 0.2085782929 | B184: 99.43
A185: 0.9655455978 | B185: 91.48
A186: 0.7416112442 | B186: 100.19
A187: 0.4335048941 | B187: 100.4
A188: 0.9364515534 | B188: 107.06
A189: 0.9128458669 | B189: 92
A190: 0.5579513868 | B190: 88.15
A191: 0.3716234691 | B191: 82.3
A192: 0.4669649974 | B192: 105.83
A193: =RAND() -> 0.4085332711 | B193: 96.27
A194: 0.3342288005 | B194: 99.6
A195: 0.4327721822 | B195: 102.6
A196: 0.9963420278 | B196: 99.72
A197: 0.8129836041 | B197: 114.29
A198: 0.1065861047 | B198: 95.17
A199: 0.00994214602 | B199: 99.3
A200: 0.1252145529 | B200: 99.83
... 4800 more rows

Sheet OOC added Data
A1: =RAND() -> 0.4240832357 | B1: 79.11 | D1: Avg | E1: =AVERAGE(B:B) -> 100.024958 | G1: 60 | J1: n | K1: Rbar | L1: sbar | M1: d2 | N1: c4 | O1: Sigma from Rbar | P1: Sigma from sbar | Q1: Population s
A2: 0.3140301255 | B2: 101.31 | D2: Stdev | E2: =STDEV(B:B) -> 12.39038331 | G2: 65 | J2: 2 | K2: 13.436455 | L2: 9.501008446 | M2: 1.128 | N2: 0.7979 | O2: =K2/M2 -> 11.91175089 | P2: =L2/N2 -> 11.90751779 | Q2: =E2 -> 12.39038331
A3: 0.5764830834 | B3: 101 | G3: 135 | J3: 3 | K3: 20.128335 | L3: 10.56227324 | M3: 1.693 | N3: 0.8862 | O3: =K3/M3 -> 11.88915239 | P3: 11.9186112 | Q3: =Q2 -> 12.39038331
A4: 0.5236869904 | B4: 108.77 | G4: 140 | J4: 4 | K4: 24.577911 | L4: 10.97212897 | M4: 2.059 | N4: 0.9213 | O4: 11.93681933 | P4: 11.90939864 | Q4: =Q3 -> 12.39038331
A5: 0.008515351584 | B5: 135 | G5: 60 | J5: 5 | K5: 28.1479625 | L5: 11.28732654 | M5: 2.326 | N5: 0.94 | O5: 12.10144561 | P5: 12.00779419 | Q5: 12.39038331
A6: 0.7271435443 | B6: 91.27 | G6: 65 | J6: 6 | K6: 30.7796935 | L6: 11.40116577 | M6: 2.534 | N6: 0.9515 | O6: 12.14668252 | P6: 11.98230769 | Q6: 12.39038331
A7: 0.5094397508 | B7: 105.29 | G7: 135 | J7: 7 | K7: 33.192602 | L7: 11.55598128 | M7: 2.704 | N7: 0.9594 | O7: 12.27537056 | P7: 12.04500863 | Q7: 12.39038331
A8: 0.4891871165 | B8: 99.56 | G8: 140 | J8: 8 | K8: 35.5219165 | L8: 11.73646923 | M8: 2.847 | N8: 0.965 | O8: 12.476964 | P8: 12.16214428 | Q8: 12.39038331
A9: 0.3121937383 | B9: 89.71 | G9: 60 | J9: 9 | K9: 37.1287 | L9: 11.74135556 | M9: 2.97 | N9: 0.9693 | O9: 12.50124579 | P9: 12.11323178 | Q9: 12.39038331
A10: 0.8554971174 | B10: 80.84 | G10: 65 | J10: 10 | K10: 38.877943 | L10: 11.82616908 | M10: 3.078 | N10: 0.9727 | O10: 12.63091066 | P10: 12.15808479 | Q10: 12.39038331
A11: 0.4520232849 | B11: 101.6 | E11: adding out of control | G11: 135 | J11: 11 | K11: 40.3748315 | L11: 11.88401363 | M11: 3.173 | N11: 0.9754 | O11: 12.72449779 | P11: 12.18373347 | Q11: 12.39038331
A12: 0.862836725 | B12: 106.08 | E12: points | G12: 140 | J12: 12 | K12: 41.8550925 | L12: 11.94407925 | M12: 3.258 | N12: 0.9776 | O12: 12.84686694 | P12: 12.217757 | Q12: 12.39038331
A13: 0.7583126656 | B13: 92.7 | G13: 60 | J13: 13 | K13: 43.0297745 | L13: 11.96666711 | M13: 3.336 | N13: 0.9794 | O13: 12.89861346 | P13: 12.21836544 | Q13: 12.39038331
A14: 0.9476718554 | B14: 112.86 | G14: 65 | J14: 14 | K14: 44.303737 | L14: 12.01748338 | M14: 3.407 | N14: 0.981 | O14: 13.00373848 | P14: 12.2502379 | Q14: 12.39038331
A15: 0.2813494779 | B15: 92.79 | G15: 135 | J15: 15 | K15: 45.297096 | L15: 12.0144558 | M15: 3.472 | N15: 0.9823 | O15: 13.04639862 | P15: 12.2309435 | Q15: 12.39038331
A16: 0.2310882279 | B16: 99.03 | G16: 140 | J16: 16 | K16: 46.267962 | L16: 12.02034848 | M16: 3.532 | N16: 0.9835 | O16: 13.09964949 | P16: 12.22201167 | Q16: 12.39038331
A17: 0.7743758619 | B17: 114.98 | G17: 60 | J17: 17 | K17: 47.3627985 | L17: 12.05616397 | M17: 3.588 | N17: 0.9845 | O17: 13.20033403 | P17: 12.24597661 | Q17: 12.39038331
A18: 0.5204535478 | B18: 94.59 | G18: 65 | J18: 18 | K18: 48.0206085 | L18: 12.01756814 | M18: 3.64 | N18: 0.9854 | O18: 13.19247486 | P18: 12.19562426 | Q18: 12.39038331
A19: 0.285740845 | B19: 99.93 | G19: 135 | J19: 19 | K19: 49.073266 | L19: 12.08739127 | M19: 3.689 | N19: 0.9862 | O19: 13.30259311 | P19: 12.2565314 | Q19: 12.39038331
A20: 0.344914821 | B20: 99.19 | G20: 140 | J20: 20 | K20: 50.0714965 | L20: 12.111557 | M20: 3.735 | N20: 0.9869 | O20: 13.40602316 | P20: 12.27232445 | Q20: 12.39038331
A21: 0.2130408752 | B21: 108.38 | G21: 60
A22: 0.9187444894 | B22: 101.23 | G22: 65
A23: 0.3149649312 | B23: 135 | G23: 135
A24: 0.899106825 | B24: 88.55 | G24: 140
A25: 0.5387227967 | B25: 91.32 | G25: 60
A26: 0.7260907893 | B26: 106.39 | G26: 65
A27: 0.4060411621 | B27: 96.33 | G27: 135
A28: 0.2877774434 | B28: 83.43 | G28: 140
A29: 0.2150599242 | B29: 106 | G29: 60
A30: 0.8455499784 | B30: 104.68 | G30: 65
A31: 0.9754931953 | B31: 86.34 | G31: 135
A32: 0.3388369326 | B32: 106.52 | G32: 140
A33: 0.5223103169 | B33: 65 | G33: 60
A34: 0.4631014054 | B34: 106.94 | G34: 65
A35: 0.9731781392 | B35: 98.21 | G35: 135
A36: 0.7368053407 | B36: 84.71 | G36: 140
A37: 0.2642512733 | B37: 110.26 | G37: 60
A38: 0.3685077087 | B38: 88.15 | G38: 65
A39: 0.292849649 | B39: 94.85 | G39: 135
A40: 0.981766898 | B40: 111.45 | G40: 140
A41: 0.6475192971 | B41: 103.98 | G41: 60
A42: 0.2956158797 | B42: 101.17 | G42: 65
A43: 0.5382389655 | B43: 135 | G43: 135
A44: 0.3808546757 | B44: 101 | G44: 140
A45: 0.7843915254 | B45: 97.36 | G45: 60
A46: 0.07128616425 | B46: 122.7 | G46: 65
A47: 0.5532615298 | B47: 83.28 | G47: 135
A48: 0.5652256886 | B48: 102.32 | G48: 140
A49: 0.2364890789 | B49: 103.89 | G49: 60
A50: 0.3887487157 | B50: 110.58 | G50: 65
A51: 0.7537995028 | B51: 101.71 | G51: 135
A52: 0.486761648 | B52: 100.53 | G52: 140
A53: 0.9098805069 | B53: 104.87 | G53: 60
A54: 0.1358176981 | B54: 106.46 | G54: 65
A55: 0.9814199279 | B55: 107.87 | G55: 135
A56: 0.831067808 | B56: 67.22 | G56: 140
A57: 0.8512096916 | B57: 108.35 | G57: 60
A58: 0.3305014094 | B58: 110.7 | G58: 65
A59: 0.2547040181 | B59: 106.07 | G59: 135
A60: 0.4946901273 | B60: 98.86 | G60: 140
A61: 0.1804866238 | B61: 99.16 | G61: 60
A62: 0.2681433441 | B62: 78.15 | G62: 65
A63: 0.7231272051 | B63: 101.34 | G63: 135
A64: 0.410238619 | B64: 97.46 | G64: 140
A65: =RAND() -> 0.8167359025 | B65: 111.43 | G65: 60
A66: 0.732154944 | B66: 124.29 | G66: 65
A67: 0.6601167705 | B67: 95.53 | G67: 135
A68: 0.213873196 | B68: 102.78 | G68: 140
A69: 0.5677178444 | B69: 98.82 | G69: 60
A70: 0.6596547996 | B70: 94.67 | G70: 65
A71: 0.1632802065 | B71: 99.06 | G71: 135
A72: 0.3627034291 | B72: 109.57 | G72: 140
A73: 0.2678098288 | B73: 97.57 | G73: 60
A74: 0.5127831844 | B74: 99.22 | G74: 65
A75: 0.6320108204 | B75: 107.65 | G75: 135
A76: 0.4508813711 | B76: 100.85 | G76: 140
A77: 0.2373566965 | B77: 105.36 | G77: 60
A78: 0.59753935 | B78: 90.46 | G78: 65
A79: 0.2613867447 | B79: 99.89 | G79: 135
A80: 0.5556808813 | B80: 91.51 | G80: 140
A81: 0.03423783849 | B81: 112.84 | G81: 60
A82: 0.9939937388 | B82: 106.64 | G82: 65
A83: 0.2419590867 | B83: 96.44 | G83: 135
A84: 0.9320976614 | B84: 105.32 | G84: 140
A85: 0.8764903548 | B85: 97.54 | G85: 60
A86: 0.1551209943 | B86: 93.51 | G86: 65
A87: 0.03982227466 | B87: 104.2 | G87: 135
A88: 0.9688075324 | B88: 105.4 | G88: 140
A89: 0.3365216941 | B89: 98.18 | G89: 60
A90: 0.06449240534 | B90: 99.37 | G90: 65
A91: 0.7240412492 | B91: 84.43 | G91: 135
A92: 0.04218647346 | B92: 80.79 | G92: 140
A93: 0.06100642233 | B93: 98.8 | G93: 60
A94: 0.5126266921 | B94: 102.34 | G94: 65
A95: 0.3789863496 | B95: 99.04 | G95: 135
A96: 0.848078771 | B96: 98.89 | G96: 140
A97: 0.3108756096 | B97: 100.13 | G97: 60
A98: 0.1684481292 | B98: 92.84 | G98: 65
A99: 0.1474624515 | B99: 81.56 | G99: 135
A100: 0.2092504819 | B100: 90.72 | G100: 140
A101: 0.3148061681 | B101: 90.77 | G101: 60
A102: 0.6932630921 | B102: 108 | G102: 65
A103: 0.3720879645 | B103: 102.25 | G103: 135
A104: 0.9793362035 | B104: 102.88 | G104: 140
A105: 0.9769739417 | B105: 140 | G105: 60
A106: 0.1269421728 | B106: 98.14 | G106: 65
A107: 0.9612526693 | B107: 98.31 | G107: 135
A108: 0.1783599342 | B108: 108.02 | G108: 140
A109: 0.1385638179 | B109: 99.36 | G109: 60
A110: 0.2223039196 | B110: 98.02 | G110: 65
A111: 0.3125399264 | B111: 95.44 | G111: 135
A112: 0.6911750232 | B112: 110.47 | G112: 140
A113: 0.215421049 | B113: 122.7 | G113: 60
A114: 0.2596312494 | B114: 100.37 | G114: 65
A115: 0.386295493 | B115: 108.23 | G115: 135
A116: 0.1378560656 | B116: 114.35 | G116: 140
A117: 0.3848906097 | B117: 95.97 | G117: 60
A118: 0.4840859078 | B118: 107.86 | G118: 65
A119: 0.8264122827 | B119: 95.76 | G119: 135
A120: 0.3327624633 | B120: 105.26 | G120: 140
A121: 0.07280265164 | B121: 104.61 | G121: 60
A122: 0.7359696848 | B122: 119.06 | G122: 65
A123: 0.9073074791 | B123: 90.3 | G123: 135
A124: 0.4315570329 | B124: 91.85 | G124: 140
A125: 0.5892084492 | B125: 100.01 | G125: 60
A126: 0.5614026772 | B126: 114.53 | G126: 65
A127: 0.8293220437 | B127: 119.62 | G127: 135
A128: 0.9419555377 | B128: 95.08 | G128: 140
A129: =RAND() -> 0.8971151538 | B129: 92.18 | G129: 60
A130: 0.3023828028 | B130: 85.7 | G130: 65
A131: 0.5183236262 | B131: 89.23 | G131: 135
A132: 0.1574881036 | B132: 87.37 | G132: 140
A133: 0.5458262628 | B133: 89.58 | G133: 60
A134: 0.7764895856 | B134: 75.66 | G134: 65
A135: 0.09194362018 | B135: 98.92 | G135: 135
A136: 0.5671433596 | B136: 88.18 | G136: 140
A137: 0.8960048367 | B137: 97.77 | G137: 60
A138: 0.6492958307 | B138: 87.18 | G138: 65
A139: 0.1854871415 | B139: 116.89 | G139: 135
A140: 0.9823023677 | B140: 88.92 | G140: 140
A141: 0.02014172095 | B141: 112.92 | G141: 60
A142: 0.208546317 | B142: 93.83 | G142: 65
A143: 0.3871087118 | B143: 99.86 | G143: 135
A144: 0.311149974 | B144: 94.63 | G144: 140
A145: 0.3671222432 | B145: 100.91 | G145: 60
A146: 0.08198303584 | B146: 103.83 | G146: 65
A147: 0.9076084352 | B147: 92.13 | G147: 135
A148: 0.3669253459 | B148: 72.64 | G148: 140
A149: 0.1739844794 | B149: 92.57 | G149: 60
A150: 0.9098860925 | B150: 99.71 | G150: 65
A151: 0.1273354481 | B151: 95.66 | G151: 135
A152: 0.08149439659 | B152: 102.15 | G152: 140
A153: 0.6994831932 | B153: 102.93 | G153: 60
A154: 0.8924345967 | B154: 104.42 | G154: 65
A155: 0.9289609811 | B155: 98.39 | G155: 135
A156: 0.284249575 | B156: 89.22 | G156: 140
A157: 0.7351648253 | B157: 97.39 | G157: 60
A158: 0.9797252149 | B158: 95.05 | G158: 65
A159: 0.2101603021 | B159: 99.09 | G159: 135
A160: 0.2728391307 | B160: 89.53 | G160: 140
A161: 0.6102966849 | B161: 105.83 | G161: 60
A162: 0.5322328681 | B162: 87.39 | G162: 65
A163: 0.06446246075 | B163: 114.94 | G163: 135
A164: 0.6768584803 | B164: 60 | G164: 140
A165: 0.1318329269 | B165: 88.09 | G165: 60
A166: 0.06552061164 | B166: 107.83 | G166: 65
A167: 0.8620520884 | B167: 97.89 | G167: 135
A168: 0.1648286951 | B168: 99.9 | G168: 140
A169: 0.3278472598 | B169: 105.96 | G169: 60
A170: 0.4365775136 | B170: 81.23 | G170: 65
A171: 0.8546847646 | B171: 121.25 | G171: 135
A172: 0.153691541 | B172: 93.92 | G172: 140
A173: 0.8741123764 | B173: 93.35 | G173: 60
A174: 0.7953161101 | B174: 86.86 | G174: 65
A175: 0.3115070992 | B175: 103.71 | G175: 135
A176: 0.4161735244 | B176: 106.32 | G176: 140
A177: 0.4369647443 | B177: 84.5 | G177: 60
A178: 0.1316357098 | B178: 92.96 | G178: 65
A179: 0.1440286245 | B179: 105.44 | G179: 135
A180: 0.2775498414 | B180: 101.61 | G180: 140
A181: 0.9156228458 | B181: 103.19 | G181: 60
A182: 0.8823176206 | B182: 99.87 | G182: 65
A183: 0.5131831893 | B183: 105.48 | G183: 135
A184: 0.1243607189 | B184: 103.03 | G184: 140
A185: 0.1775357072 | B185: 60 | G185: 60
A186: 0.1078167762 | B186: 102.37 | G186: 65
A187: 0.424684115 | B187: 102.64 | G187: 135
A188: 0.08438755332 | B188: 109.58 | G188: 140
A189: 0.9767101617 | B189: 93.59 | G189: 60
A190: 0.8670546138 | B190: 102.13 | G190: 65
A191: 0.4245462006 | B191: 114.58 | G191: 135
A192: 0.3503971335 | B192: 84.94 | G192: 140
A193: =RAND() -> 0.9426874259 | B193: 104.34 | G193: 60
A194: 0.3973976496 | B194: 103.88 | G194: 65
A195: 0.1483604784 | B195: 113.16 | G195: 135
A196: 0.2196687322 | B196: 91.76 | G196: 140
A197: 0.3437309679 | B197: 97.91 | G197: 60
A198: 0.5813982097 | B198: 80.42 | G198: 65
A199: 0.9429139412 | B199: 85.73 | G199: 135
A200: 0.10999546 | B200: 81.14 | G200: 140
... 4800 more rows

Sheet Mixed ProcessData
A1: =RAND() -> 0.8212784879 | B1: 84.97 | D1: =AVERAGE(B:B) -> 98.453996 | J1: n | K1: Rbar | L1: sbar | M1: d2 | N1: c4 | O1: Sigma from Rbar | P1: Sigma from Sbar | Q1: Population s
A2: 0.8506042004 | B2: 97.91 | D2: =STDEV(B:B) -> 11.0485607 | J2: 2 | K2: 12.510726 | L2: 8.846419192 | M2: 1.128 | N2: 0.7979 | O2: =K2/M2 -> 11.09106915 | P2: =L2/N2 -> 11.0871277 | Q2: =D2 -> 11.0485607
A3: 0.1036660806 | B3: 92.49 | J3: 3 | K3: 18.660165 | L3: 9.770127035 | M3: 1.693 | N3: 0.8862 | O3: =K3/M3 -> 11.02195216 | P3: 11.02474276 | Q3: =Q2 -> 11.0485607
A4: 0.1361701733 | B4: 72.64 | E4: added 10% points with avg 85 and stdev 10 | J4: 4 | K4: 22.763089 | L4: 10.18136651 | M4: 2.059 | N4: 0.9213 | O4: 11.05540991 | P4: 11.05108706 | Q4: =Q3 -> 11.0485607
A5: 0.9693035748 | B5: 104.75 | J5: 5 | K5: 25.6081115 | L5: 10.34619346 | M5: 2.326 | N5: 0.94 | O5: 11.00950623 | P5: 11.00658879 | Q5: 11.0485607
A6: 0.05031342247 | B6: 86.82 | J6: 6 | K6: 28.0336555 | L6: 10.51911193 | M6: 2.534 | N6: 0.9515 | O6: 11.06300533 | P6: 11.05529367 | Q6: 11.0485607
A7: 0.7359851109 | B7: 81.56 | J7: 7 | K7: 29.9095545 | L7: 10.59927587 | M7: 2.704 | N7: 0.9594 | O7: 11.06122578 | P7: 11.04781725 | Q7: 11.0485607
A8: 0.4383168013 | B8: 97.53 | J8: 8 | K8: 31.5539405 | L8: 10.67826604 | M8: 2.847 | N8: 0.965 | O8: 11.08322462 | P8: 11.06556066 | Q8: 11.0485607
A9: 0.3467806709 | B9: 82.26 | J9: 9 | K9: 32.9457665 | L9: 10.73152469 | M9: 2.97 | N9: 0.9693 | O9: 11.09285067 | P9: 11.0714172 | Q9: 11.0485607
A10: 0.07681584759 | B10: 106.28 | J10: 10 | K10: 34.08628 | L10: 10.74409977 | M10: 3.078 | N10: 0.9727 | O10: 11.07416504 | P10: 11.0456459 | Q10: 11.0485607
A11: 0.2406277137 | B11: 112.77 | J11: 11 | K11: 35.165185 | L11: 10.78658005 | M11: 3.173 | N11: 0.9754 | O11: 11.08263 | P11: 11.05862215 | Q11: 11.0485607
A12: 0.8394000583 | B12: 95.98 | J12: 12 | K12: 36.177779 | L12: 10.82636678 | M12: 3.258 | N12: 0.9776 | O12: 11.10429067 | P12: 11.0744341 | Q12: 11.0485607
A13: 0.6575935977 | B13: 103.67 | J13: 13 | K13: 36.943658 | L13: 10.81864047 | M13: 3.336 | N13: 0.9794 | O13: 11.07423801 | P13: 11.04619202 | Q13: 11.0485607
A14: 0.6778053403 | B14: 96.83 | J14: 14 | K14: 37.731956 | L14: 10.83164953 | M14: 3.407 | N14: 0.981 | O14: 11.07483299 | P14: 11.04143683 | Q14: 11.0485607
A15: 0.5718185719 | B15: 95.42 | J15: 15 | K15: 38.5563035 | L15: 10.87466532 | M15: 3.472 | N15: 0.9823 | O15: 11.10492612 | P15: 11.0706152 | Q15: 11.0485607
A16: 0.8261836717 | B16: 102.46 | J16: 16 | K16: 39.0746175 | L16: 10.84796461 | M16: 3.532 | N16: 0.9835 | O16: 11.06302874 | P16: 11.02995893 | Q16: 11.0485607
A17: 0.0608892652 | B17: 100.69 | J17: 17 | K17: 39.790778 | L17: 10.8946918 | M17: 3.588 | N17: 0.9845 | O17: 11.08996042 | P17: 11.06621818 | Q17: 11.0485607
A18: 0.7955378643 | B18: 90.82 | J18: 18 | K18: 40.3434975 | L18: 10.87926175 | M18: 3.64 | N18: 0.9854 | O18: 11.08337843 | P18: 11.04045235 | Q18: 11.0485607
A19: 0.8209744969 | B19: 76.51 | J19: 19 | K19: 40.880106 | L19: 10.89617564 | M19: 3.689 | N19: 0.9862 | O19: 11.08162266 | P19: 11.04864697 | Q19: 11.0485607
A20: 0.5978524937 | B20: 78.5 | J20: 20 | K20: 41.363663 | L20: 10.9073684 | M20: 3.735 | N20: 0.9869 | O20: 11.07460857 | P20: 11.05215158 | Q20: 11.0485607
A21: 0.8337951697 | B21: 94.98
A22: 0.07550700394 | B22: 106.13 | O22: =AVERAGE(O6:O20) -> 11.08053254 | P22: =AVERAGE(P6:P20) -> 11.05429753
A23: 0.5163337028 | B23: 132.32
A24: 0.001638371975 | B24: 80.88
A25: 0.3874929539 | B25: 100.7
A26: 0.165278321 | B26: 84.83
A27: 0.06922296656 | B27: 92.89
A28: 0.7278329693 | B28: 103.45
A29: 0.9492210828 | B29: 118.13
A30: 0.8370629855 | B30: 76.1
A31: 0.4336450298 | B31: 107.64
A32: 0.3411896377 | B32: 92.83
A33: 0.491376519 | B33: 104.1
A34: 0.8328227623 | B34: 107.42
A35: 0.09151045893 | B35: 99.47
A36: 0.4644642211 | B36: 89.59
A37: 0.1807623536 | B37: 106.52
A38: 0.1893548748 | B38: 80.97
A39: 0.7977723385 | B39: 103.84
A40: 0.6451782329 | B40: 114.58
A41: 0.7588573098 | B41: 91.72
A42: 0.4273251828 | B42: 108.33
A43: 0.9928040433 | B43: 102.34
A44: 0.2186074467 | B44: 103.78
A45: 0.4991284655 | B45: 94.7
A46: 0.8360343367 | B46: 88.48
A47: 0.7383784713 | B47: 92.41
A48: 0.4229146038 | B48: 106.19
A49: 0.3316244954 | B49: 91.95
A50: 0.1188089371 | B50: 104.72
A51: 0.5472437311 | B51: 100.06
A52: 0.8771689678 | B52: 97.06
A53: 0.7258539174 | B53: 113.56
A54: 0.8305656099 | B54: 88.02
A55: 0.08621482907 | B55: 108.97
A56: 0.5815661807 | B56: 84.91
A57: 0.2887541602 | B57: 105.96
A58: 0.7713128998 | B58: 93.57
A59: 0.786824951 | B59: 105.83
A60: 0.6161600409 | B60: 98.76
A61: 0.06884382048 | B61: 74.51
A62: 0.8395331402 | B62: 106.47
A63: 0.7635454276 | B63: 109.73
A64: 0.5889737267 | B64: 111.99
A65: =RAND() -> 0.7807037812 | B65: 80.59
A66: 0.8071006404 | B66: 111.9
A67: 0.1374701057 | B67: 100.54
A68: 0.7432081678 | B68: 88.35
A69: 0.7148709133 | B69: 92.12
A70: 0.9155624796 | B70: 95.94
A71: 0.6330875492 | B71: 114.45
A72: 0.7772375468 | B72: 96.94
A73: 0.4360641476 | B73: 101.88
A74: 0.9809057388 | B74: 101.58
A75: 0.06455522532 | B75: 99.1
A76: 0.4280543968 | B76: 98.29
A77: 0.184348957 | B77: 101.88
A78: 0.8806178704 | B78: 86.59
A79: 0.9882113516 | B79: 96.61
A80: 0.7969783393 | B80: 82.4
A81: 0.7529071787 | B81: 104.91
A82: 0.1540459904 | B82: 86.94
A83: 0.3437348947 | B83: 118.24
A84: 0.5782457988 | B84: 92.63
A85: 0.3931589581 | B85: 94.15
A86: 0.03626181611 | B86: 110.42
A87: 0.1038063765 | B87: 95.06
A88: 0.5582453317 | B88: 85.7
A89: 0.2506779376 | B89: 93.23
A90: 0.1571090122 | B90: 110.52
A91: 0.8502417261 | B91: 96.69
A92: 0.7997410598 | B92: 113.09
A93: 0.9620974362 | B93: 107.41
A94: 0.04959381278 | B94: 87.67
A95: 0.4998637828 | B95: 83.01
A96: 0.3449541131 | B96: 97.45
A97: 0.1521216086 | B97: 98.59
A98: 0.4942784832 | B98: 94.85
A99: 0.8992633213 | B99: 100.97
A100: 0.08685755389 | B100: 110.7
A101: 0.6258830291 | B101: 126.24
A102: 0.4778777587 | B102: 110.41
A103: 0.05507779724 | B103: 87.94
A104: 0.8737108771 | B104: 75.43
A105: 0.8671264128 | B105: 108.52
A106: 0.974140918 | B106: 98.01
A107: 0.3814785984 | B107: 94.91
A108: 0.6433629205 | B108: 86.02
A109: 0.8144161747 | B109: 89.04
A110: 0.6991880414 | B110: 115.86
A111: 0.3013552746 | B111: 93.01
A112: 0.7449816322 | B112: 88.67
A113: 0.3858135258 | B113: 100.94
A114: 0.9914009264 | B114: 89.35
A115: 0.9699216388 | B115: 87.25
A116: 0.2937564079 | B116: 96.04
A117: 0.1547645275 | B117: 111.31
A118: 0.9668321035 | B118: 115.26
A119: 0.9408448796 | B119: 115.61
A120: 0.9364146831 | B120: 98.79
A121: 0.4233689001 | B121: 102.05
A122: 0.8779816648 | B122: 86.68
A123: 0.8206459577 | B123: 95.06
A124: 0.6717215252 | B124: 73.77
A125: 0.8460718062 | B125: 88.74
A126: 0.62400911 | B126: 90.63
A127: 0.1654278947 | B127: 87.72
A128: 0.8521121794 | B128: 104.41
A129: =RAND() -> 0.04658291085 | B129: 112.48
A130: 0.8296027347 | B130: 96.51
A131: 0.9573963109 | B131: 80.4
A132: 0.8661754661 | B132: 99.26
A133: 0.3337576909 | B133: 102.75
A134: 0.7348498445 | B134: 102.88
A135: 0.1545924723 | B135: 103.58
A136: 0.8622953668 | B136: 101.12
A137: 0.5708232073 | B137: 92.72
A138: 0.9031841095 | B138: 111.39
A139: 0.2017355406 | B139: 115.71
A140: 0.9581247767 | B140: 106.87
A141: 0.4688641763 | B141: 108.14
A142: 0.8807845784 | B142: 93.52
A143: 0.03732321505 | B143: 126
A144: 0.4519072299 | B144: 113.14
A145: 0.6713760655 | B145: 102
A146: 0.9818646593 | B146: 108.71
A147: 0.1458628055 | B147: 79.99
A148: 0.1373331432 | B148: 92.53
A149: 0.2918456585 | B149: 93.83
A150: 0.4380580637 | B150: 97.74
A151: 0.6967955891 | B151: 93.85
A152: 0.4955989562 | B152: 117.01
A153: 0.6300793288 | B153: 79.55
A154: 0.4157391817 | B154: 93.84
A155: 0.1815218438 | B155: 117.59
A156: 0.7584072893 | B156: 81.4
A157: 0.4312408993 | B157: 94.13
A158: 0.4339748854 | B158: 81.94
A159: 0.1908105137 | B159: 100.53
A160: 0.5972646064 | B160: 119.06
A161: 0.9951681734 | B161: 111.45
A162: 0.9894702571 | B162: 96.05
A163: 0.1323674852 | B163: 90.04
A164: 0.004400692255 | B164: 110.81
A165: 0.3775149797 | B165: 95.76
A166: 0.7655266455 | B166: 90.48
A167: 0.2352009534 | B167: 109.27
A168: 0.9879538998 | B168: 103
A169: 0.5242021178 | B169: 101.06
A170: 0.262198416 | B170: 80.31
A171: 0.8543877035 | B171: 90.25
A172: 0.9124601266 | B172: 74.37
A173: 0.970249136 | B173: 105.96
A174: 0.7391519599 | B174: 106.95
A175: 0.3166279336 | B175: 88.86
A176: 0.2500940605 | B176: 81.46
A177: 0.9931380724 | B177: 106.27
A178: 0.101626625 | B178: 114.74
A179: 0.5726048517 | B179: 80.74
A180: 0.1051369335 | B180: 110.17
A181: 0.5804895195 | B181: 90.97
A182: 0.1015876831 | B182: 111.13
A183: 0.1054633476 | B183: 99.81
A184: 0.1412501823 | B184: 107.04
A185: 0.4102725217 | B185: 91.6
A186: 0.4197763551 | B186: 80.68
A187: 0.8365383026 | B187: 84.62
A188: 0.7753727877 | B188: 86.59
A189: 0.1703338207 | B189: 77.12
A190: 0.3670438081 | B190: 97.01
A191: 0.9231787497 | B191: 105.81
A192: 0.09021205817 | B192: 125.06
A193: =RAND() -> 0.09281654262 | B193: 79.07
A194: 0.4770201766 | B194: 121.53
A195: 0.8579686328 | B195: 119.88
A196: 0.30740203 | B196: 106.61
A197: 0.66674376 | B197: 103.89
A198: 0.8739719252 | B198: 95.09
A199: 0.4914379059 | B199: 109.17
A200: 0.5030297719 | B200: 101.39
... 4800 more rows

Sheet Constants
B1: d2 | C1: c4
A2: 2 | B2: 1.128 | C2: 0.7979
A3: 3 | B3: 1.693 | C3: 0.8862
A4: 4 | B4: 2.059 | C4: 0.9213
A5: 5 | B5: 2.326 | C5: 0.94
A6: 6 | B6: 2.534 | C6: 0.9515
A7: 7 | B7: 2.704 | C7: 0.9594
A8: 8 | B8: 2.847 | C8: 0.965
A9: 9 | B9: 2.97 | C9: 0.9693
A10: 10 | B10: 3.078 | C10: 0.9727
A11: 11 | B11: 3.173 | C11: 0.9754
A12: 12 | B12: 3.258 | C12: 0.9776
A13: 13 | B13: 3.336 | C13: 0.9794
A14: 14 | B14: 3.407 | C14: 0.981
A15: 15 | B15: 3.472 | C15: 0.9823
A16: 16 | B16: 3.532 | C16: 0.9835
A17: 17 | B17: 3.588 | C17: 0.9845
A18: 18 | B18: 3.64 | C18: 0.9854
A19: 19 | B19: 3.689 | C19: 0.9862
A20: 20 | B20: 3.735 | C20: 0.9869

Sheet Data for Control Charts Used
A1: Subgroup Number | B1: X1 | C1: X2 | D1: X3 | E1: X4 | F1: X5
A2: 1 | B2: 88.64 | C2: 100.33 | D2: 103.19 | E2: 102.15 | F2: 89.36
A3: 2 | B3: 101.85 | C3: 115.91 | D3: 115.94 | E3: 92.88 | F3: 114.55
A4: 3 | B4: 112.56 | C4: 113.82 | D4: 102.99 | E4: 97.8 | F4: 76.18
A5: 4 | B5: 96.61 | C5: 125.23 | D5: 127.26 | E5: 91.24 | F5: 89.81
A6: 5 | B6: 100.63 | C6: 103.24 | D6: 114.2 | E6: 96.49 | F6: 92.17
A7: 6 | B7: 111.63 | C7: 101.72 | D7: 118.59 | E7: 96.81 | F7: 99.67
A8: 7 | B8: 97.92 | C8: 97.45 | D8: 88.48 | E8: 111.01 | F8: 92.35
A9: 8 | B9: 110.19 | C9: 88.98 | D9: 98 | E9: 103.66 | F9: 102.81
A10: 9 | B10: 110.54 | C10: 90.37 | D10: 123.92 | E10: 90.21 | F10: 84.28
A11: 10 | B11: 98.55 | C11: 111.5 | D11: 89.46 | E11: 112.17 | F11: 98.46
A12: 11 | B12: 91.71 | C12: 102.16 | D12: 104.82 | E12: 86.86 | F12: 95.81
A13: 12 | B13: 100.88 | C13: 105.29 | D13: 112.79 | E13: 91.52 | F13: 100.83
A14: 13 | B14: 99.66 | C14: 115.68 | D14: 112.69 | E14: 82.09 | F14: 78.15
A15: 14 | B15: 109.58 | C15: 109.06 | D15: 102.02 | E15: 113.09 | F15: 125.06
A16: 15 | B16: 119.73 | C16: 106.94 | D16: 95.17 | E16: 115.97 | F16: 94.05
A17: 16 | B17: 91.56 | C17: 91.8 | D17: 105.96 | E17: 80.05 | F17: 100.9
A18: 17 | B18: 104.54 | C18: 93.68 | D18: 105.65 | E18: 98.8 | F18: 107.57
A19: 18 | B19: 98.59 | C19: 94.16 | D19: 98.11 | E19: 97.85 | F19: 107.64
A20: 19 | B20: 102.81 | C20: 112.11 | D20: 92.62 | E20: 110.94 | F20: 101.74
A21: 20 | B21: 101.51 | C21: 88.35 | D21: 105.37 | E21: 95.09 | F21: 95.21
